Cogmind - Beta 17 @@@ ROGUE MODE // 2026.07.24 @ 18:35:49 Player: V1-Dll Result: Self-destructed Performance ------------- Evolutions (5) 2500 Regions Visited (14) 2800 Robots Destroyed (217) 1085 Value Destroyed (6926) 6926 Prototype IDs (32) 640 Alien Tech Used (0) 0 Bonus (176) 176 TOTAL SCORE: 14127 Bonus ------- High Alert Combat Kills 180 Follower Combat Kills 592 Aligned with FarCom 300 Friendly Fire -896 Cogmind --------- Core Integrity 1000/1000 Matter 54/550 Energy 85/100 System Corruption 0% Temperature Cool (0) Movement Treading (225) Ox2 Location -5/Factory Parts ------- > --- POWER (1) -------- (None) > --- PROPULSION (6) --- Advanced Treads Medium Treads (fused) Compact Wheel > --- UTILITY (6) ------ High-capacity Storage Unit Matter Compressor Transport Network Coupler Core Analyzer > --- WEAPON (4) ------- Enhanced Autogun > --- INVENTORY (20) --- Reinforced Deuterium Engine Antimatter Reactor Enhanced Optical Array Improved Salvage Targeting Computer Core Analyzer Armor Integrity Analyzer Matter Filter Transmission Jammer Hardened Heavy Armor Plating Medium Reactive Plating Thermal Defense Suite Heavy Missile Launcher Precision Grenade Launcher Peak State ------------ > --- POWER ------------ Heavy Deuterium Engine > --- PROPULSION ------- Medium Treads Improved Medium Treads Heavy Treads > --- UTILITY ---------- Improved Cooling System High-capacity Storage Unit Core Analyzer Hardened Heavy Armor Plating Medium Reactive Plating > --- WEAPON ----------- Enhanced Autogun Enhanced Autogun Enhanced Autogun Gauss Rifle > --- INVENTORY -------- Reinforced Deuterium Engine Antimatter Reactor Advanced Treads Improved Medium Treads Compact Matter Pod Compact Matter Pod Enhanced Optical Array Improved Signal Interpreter Improved Salvage Targeting Computer Advanced Targeting Computer Core Analyzer Armor Integrity Analyzer Matter Filter Transmission Jammer Hardened Heavy Armor Plating Heavy Battle Rifle Advanced Assault Cannon Heavy Missile Launcher Precision Grenade Launcher [Rating: 71] Favorites ----------- Power Heavy Deuterium Engine Engine Heavy Deuterium Engine Power Core Micro Nuclear Core Propulsion Light Treads Treads Light Treads Leg Improved Titanium Leg Wheel Compact Wheel Utility High-capacity Storage Unit Device Transmission Jammer Storage High-capacity Storage Unit Processor Corruption Screen Protection Hardened Light Armor Plating Weapon Scythe Energy Gun EM Shotgun Energy Cannon Advanced Beam Cannon Ballistic Gun Enhanced Autogun Ballistic Cannon Advanced Assault Cannon Launcher Grenade Launcher Slashing Weapon Scythe Special Melee Weapon Datajack Build | -11 -10 -10 -9 -9 -9 -8 -8 -7 -7 -7 -7 -7 -6 -5 ------- Run | Yrd Mat Min Mat Min Exi Min Mat Fac Was Fac Low Low Fac Fac Slots Evolved 10 | . . . 2 . . . 2 2 . . . . 2 2 Power . | . . . . . . . . . . . . . . . Propulsion 4 | . . . . . . . 1 1 . . . . . 2 Utility 4 | . . . . . . . 1 1 . . . . 2 . Weapon 2 | . . . 2 . . . . . . . . . . . Parts Attached 126 | 6 6 8 21 1 . . 23 22 8 15 2 2 12 . Power 9 | 1 . 1 2 . . . 2 1 1 . . . 1 . Engine 6 | 1 . 1 1 . . . 1 . 1 . . . 1 . Core 3 | . . . 1 . . . 1 1 . . . . . . Reactor . | . . . . . . . . . . . . . . . Propulsion 36 | 2 . 2 7 . . . 8 7 . 4 . 1 5 . Treads 22 | 2 . 2 5 . . . 5 . . 4 . 1 3 . Leg 10 | . . . . . . . 3 7 . . . . . . Wheel 4 | . . . 2 . . . . . . . . . 2 . Hover . | . . . . . . . . . . . . . . . Flight . | . . . . . . . . . . . . . . . Utility 36 | 1 2 2 2 . . . 6 11 . 5 1 1 5 . Device 5 | . 1 . . . . . . 3 . 1 . . . . Storage 5 | 1 1 . . . . . . 2 . . . . 1 . Processor 14 | . . 1 1 . . . 2 3 . 3 . 1 3 . Hackware . | . . . . . . . . . . . . . . . Protection 12 | . . 1 1 . . . 4 3 . 1 1 . 1 . Artifact . | . . . . . . . . . . . . . . . Weapon 45 | 2 4 3 10 1 . . 7 3 7 6 1 . 1 . Energy Gun 5 | . 2 2 1 . . . . . . . . . . . Energy Cannon 2 | . . 1 1 . . . . . . . . . . . Ballistic Gun 12 | 2 1 . . . . . . . 4 4 1 . . . Ballistic Cannon 2 | . . . . . . . . . . 1 . . 1 . Launcher 5 | . 1 . 1 1 . . 1 . . 1 . . . . Special Weapon . | . . . . . . . . . . . . . . . Impact Weapon . | . . . . . . . . . . . . . . . Slashing Weapon 18 | . . . 6 . . . 6 3 3 . . . . . Piercing Weapon . | . . . . . . . . . . . . . . . Special Melee Weapon 1 | . . . 1 . . . . . . . . . . . Unidentified Prototypes 7 | . . . 3 . . . . 1 1 2 . . . . Parts Lost 42 | . 1 5 8 . . 1 7 6 1 . . 1 12 . Power 4 | . . 1 1 . . . . 1 . . . . 1 . Propulsion 14 | . . 1 2 . . . 2 3 . . . 1 5 . Utility 9 | . . . 1 . . . 3 2 1 . . . 2 . Weapon 15 | . 1 3 4 . . 1 2 . . . . . 4 . Highest Loss Streak 6 | . 1 5 2 . . 1 5 2 1 . . 1 6 . To Critical Strikes 1 | . . . . . . . . . . . . . 1 . Average Backups 17 | 2 8 12 18 20 20 20 19 17 17 17 17 17 16 13 Power 1 | . 1 . . 1 1 1 1 1 2 1 1 1 2 2 Propulsion 3 | . 2 3 4 4 3 3 5 3 3 2 1 1 1 . Utility 7 | . 1 3 7 5 5 6 5 6 8 9 11 10 10 9 Weapon 5 | . 3 3 5 10 10 10 6 5 3 4 4 4 2 2 Tool/Special . | . . . . . . . . . . . . . . . Unused Backups 48 | . . . 8 . . . 11 9 1 8 . . 2 9 Power 3 | . . . . . . . . . . 1 . . . 2 Propulsion 8 | . . . . . . . 2 2 . 4 . . . . Utility 21 | . . . 5 . . . 1 5 1 1 . . 2 6 Weapon 16 | . . . 3 . . . 8 2 . 2 . . . 1 Tool/Special . | . . . . . . . . . . . . . . . Average Slot Usage (%) 94 | . 98 95 90 100 100 92 98 99 88 88 88 91 86 47 Engine 6 | . 14 13 6 11 11 11 3 3 . 7 7 7 5 . Core 1 | . . . 1 . . . 5 3 6 . . . . . Treads 16 | . 28 27 18 22 22 22 21 . . 22 23 22 17 11 Leg 8 | . . . . . . . 5 29 30 . . . . . Device 2 | . 12 . . . . . . 2 . 4 3 7 5 . Storage 8 | . 14 14 11 11 11 11 9 7 7 7 7 7 6 11 Processor 7 | . . 3 6 . . . 3 12 13 12 7 6 10 11 Protection 6 | . . 9 3 11 11 11 14 6 . 1 7 7 7 . Energy Gun 2 | . 21 17 1 . . . . . . . . . . . Ballistic Gun 9 | . 5 . . . . . . . 6 29 29 30 22 5 Launcher 1 | . . . . 7 11 11 1 . . . . . . . Slashing Weapon 18 | . . . 32 33 33 26 33 30 21 . . . . . Peak Build Rating 71 | 6 10 10 23 21 20 20 39 56 54 62 60 63 71 29 Average Rating 39 | 4 9 9 18 20 19 18 31 51 48 58 59 61 63 29 On Entrance 30 | . 6 10 10 21 20 20 17 39 54 50 60 60 63 26 Avg Prop Armor Cover (%) 7 | . . . . . . . . . . 5 . . 8 . Naked Turns . | . . . . . . . . . . . . . . . Heaviest Build 107 | 10 50 54 63 63 62 62 69 67 67 87 86 86 107 . Greatest Support 130 | 40 40 40 40 40 40 40 64 80 80 126 126 128 130 . Greatest Overweight (x) 5 | . 2 1 3 1 1 1 1 . . . . . 5 . Average Overweight (x) . | . . 1 1 1 1 1 . . . . . . . . Largest Inventory Capacity 20 | 8 20 20 20 20 20 20 20 20 20 20 20 20 20 20 Average Capacity 19 | 7 16 20 20 20 20 20 20 20 20 20 20 20 20 20 Most Carried 20 | 4 11 14 20 20 20 20 20 20 20 20 20 20 20 14 Average Carried 18 | 2 8 12 18 19 19 20 19 19 19 19 18 19 17 14 Final Capacity 20 | 8 20 20 20 20 20 20 20 20 20 20 20 20 20 20 Final Carried 20 | 4 11 13 20 20 20 20 20 19 20 19 19 20 15 14 Class Distribution -------------------- 36% | Gladiator 33% | Mutant 12% | Tank 9% | Skirmisher 4% | Derelict-Tank Dominant Class ---------------- Mutant | -10/Materials Mutant | -10/Mines Gladiator | -9/Materials Mutant | -9/Mines Mutant | -9/Exiles Mutant | -8/Mines Mutant | -8/Materials Gladiator | -7/Factory Gladiator | -7/Waste Skirmisher | -7/Factory Tank | -7/Lower Caves Tank | -7/Lower Caves Tank | -6/Factory Tank | -5/Factory Resources | -11 -10 -10 -9 -9 -9 -8 -8 -7 -7 -7 -7 -7 -6 -5 ----------- Run | Yrd Mat Min Mat Min Exi Min Mat Fac Was Fac Low Low Fac Fac Matter Collected 4817 | 198 217 258 254 120 . 55 275 352 104 1492 325 293 874 . Remotely . | . . . . . . . . . . . . . . . Salvage Created 8775 | . 351 448 1512 356 . 95 1304 1892 103 1306 67 218 1123 . Parts 461 | . 26 27 101 20 . 3 64 93 6 65 3 11 42 . Haulers Intercepted 22 | . 1 . 3 . . . 3 5 . 6 . . 4 . Recyclers Shooed 4 | . 1 . . 1 . . . . . . . . 2 . Parts Field Recycled . | . . . . . . . . . . . . . . . Retrieved Matter . | . . . . . . . . . . . . . . . Parts Self-Destructed 14 | . . . . . . . . . . . 3 11 . . Prevented . | . . . . . . . . . . . . . . . Parts Restored . | . . . . . . . . . . . . . . . Kills | -11 -10 -10 -9 -9 -9 -8 -8 -7 -7 -7 -7 -7 -6 -5 ------- Run | Yrd Mat Min Mat Min Exi Min Mat Fac Was Fac Low Low Fac Fac Combat Hostiles Destroyed 156 | . 7 13 28 9 . 5 24 33 . 16 1 5 15 . Melee 80 | . . . 25 2 . . 20 33 . . . . . . Guns 49 | . 4 11 . . . . . . . 16 1 5 12 . Cannons 4 | . . 1 . . . . . . . . . . 3 . AOE 22 | . 3 . 3 7 . 5 4 . . . . . . . Classes Destroyed 20 | . 6 1 3 2 . . 2 1 1 . . 1 3 . Worker 10 | . . . 3 . . . . 3 . 3 . . 1 . Builder 4 | . . . 1 1 . 1 . . . . . . 1 . Tunneler 3 | . . . . 1 . . . 1 . 1 . . . . Hauler 22 | . 1 . 3 . . . 3 5 . 6 . . 4 . Recycler 6 | . 1 . 1 1 . . . . . 2 . . 1 . Mechanic 1 | . . . . . . . 1 . . . . . . . Operator 2 | . 1 . . . . . . . . 1 . . . . Watcher 10 | . 3 . 4 . . . 1 2 . . . . . . Swarmer 38 | . 3 6 6 . . 3 4 7 . 3 . 3 3 . Grunt 56 | . 4 5 12 5 . 2 13 11 . 3 . . 1 . Brawler 5 | . . . . 3 . . 1 . . 1 . . . . Duelist 4 | . . . 1 1 . . 1 1 . . . . . . Protector 1 | . . . . . . . . . . . . . 1 . Sentry 22 | . . 2 9 . . . 4 3 . 2 1 1 . . Specialist 3 | . . . . . . . . . . . . . 3 . Hunter 4 | . . . . . . . . . . . . . 4 . Programmer 21 | . . . . . . . . 11 . 7 . . 3 . Heavy 1 | . . . . . . . 1 . . . . . . . Behemoth 1 | . . . . . . . . . . . . 1 . . Thug 1 | . . . . . . . . . . 1 . . . . Martyr 2 | . . . . . . . . . 2 . . . . . Best Kill Streak 7 | . 7 3 5 6 . 4 6 5 . 3 1 3 5 . Combat Bots Only 5 | . 4 3 5 4 . 3 5 5 . 3 1 3 4 . Max Kills in Single Turn 3 | . 3 1 2 3 . 1 3 1 1 2 1 1 1 . Gunslinging . | . . . . . . . . . . . . . . . Exploded 3 | . 2 . 2 2 . 1 3 . . . . . . . Melee 1 | . . . 1 1 . . 1 1 . . . . . . Uniques/NPCs Destroyed . | . . . . . . . . . . . . . . . Combat | -11 -10 -10 -9 -9 -9 -8 -8 -7 -7 -7 -7 -7 -6 -5 -------- Run | Yrd Mat Min Mat Min Exi Min Mat Fac Was Fac Low Low Fac Fac Hostile Shots Fired 860 | . 27 81 106 14 . 6 103 169 2 90 20 58 184 . Missed 254 | . 10 24 25 5 . 1 27 59 1 29 7 20 46 . Hits 606 | . 17 57 81 9 . 5 76 110 1 61 13 38 138 . Melee 21 | . . . 4 3 . . 6 4 1 . 2 . 1 . Projectile 585 | . 17 57 77 6 . 5 70 106 . 61 11 38 137 . AOE 1 | . . . . . . . . . . 1 . . . . Critical Strikes 24 | . . . 1 . . . 8 4 . 3 . . 8 . Part Disruptions 2 | . . . . . . . . . . 1 . . 1 . Damage Taken 9972 | . 208 693 1104 181 . 64 1691 1848 33 955 99 462 2634 . Core 1428 | . 10 121 242 49 . 9 260 293 . 87 16 43 298 . Absorbed by Shields . | . . . . . . . . . . . . . . . Ignored by Resistances 136 | . . . . . . . . . . . . 136 . . Regen/Repaired (Parts) 272 | . . . . . . . . 69 28 175 . . . . Core Remaining (%) 54 | 100 . 47 . . . 25 52 . . . . 37 64 . Volleys Fired 259 | . 20 40 10 11 . 6 4 . . 78 7 17 66 . Largest 4 | . 2 2 1 1 . 1 1 . . 4 4 4 4 . Hottest 137 | . 90 105 68 30 . 30 33 . . 132 103 103 137 . Shots Fired 737 | . 29 62 10 11 . 6 4 . . 282 26 68 239 . Gun 644 | . 26 51 7 . . . . . . 276 26 68 190 . Cannon 67 | . . 11 1 . . . . . . 6 . . 49 . Launcher 26 | . 3 . 2 11 . 6 4 . . . . . . . Special . | . . . . . . . . . . . . . . . Kinetic 624 | . 6 . 3 . . . . . . 282 26 68 239 . Thermal 12 | . . 11 1 . . . . . . . . . . . Explosive 26 | . 3 . 2 11 . 6 4 . . . . . . . Electromagnetic 75 | . 20 51 4 . . . . . . . . . . . Robot Hit Streak 21 | . 6 11 6 10 . 7 . . . 9 7 20 21 . Robot Miss Streak 5 | . 3 5 3 1 . . . . . 4 4 2 4 . Penetration Max 1 | . . . . . . . . . . . . . 1 . Secondary Targets 3 | . . 2 . . . . . . . 1 . . . . Max Gunslinging Chain 1 | . . 1 . . . . . . . 1 . . . . Shots Hit Robots 723 | . 22 46 77 10 . 7 89 111 6 140 14 48 153 . Core Hits 335 | . 23 28 39 25 . 11 35 47 2 52 4 13 56 . Critical Kills 2 | . . 1 . . . . . . . 1 . . . . Critical Parts Destroyed 1 | . . . . . . . . . . 1 . . . . Critical Strikes 40 | . . 1 6 1 . . 11 16 . 2 . 1 2 . Meltdown 1 | . . 1 . . . . . . . . . . . . Destroy 3 | . . . . . . . . . . 2 . 1 . . Blast 2 | . . . . . . . . . . . . . 2 . Sever 34 | . . . 6 1 . . 11 16 . . . . . . Melee Attacks 382 | . . . 98 8 . 1 110 155 10 . . . . . Impact . | . . . . . . . . . . . . . . . Slashing 382 | . . . 98 8 . 1 110 155 10 . . . . . Piercing . | . . . . . . . . . . . . . . . Sneak Attacks 51 | . . . 15 . . 1 9 20 6 . . . . . Combat Hostiles 5 | . . . 1 . . . . 4 . . . . . . Follow-up Attacks 77 | . . . 19 1 . . 23 33 1 . . . . . Damage Inflicted 20844 | . 531 657 3000 978 . 378 3149 4673 456 2986 246 889 2901 . Guns 7198 | . 243 567 101 . . . . . . 2947 246 889 2205 . Cannons 741 | . . 53 20 . . . . . . . . . 668 . Explosions 1917 | . 288 37 184 860 . 313 235 . . . . . . . Melee 10921 | . . . 2695 118 . 65 2914 4673 456 . . . . . Ramming 67 | . . . . . . . . . . 39 . . 28 . Kinetic 7055 | . 59 . 41 . . . . . . 2947 246 889 2873 . Thermal 136 | . . 90 46 . . . . . . . . . . . Explosive 1854 | . 288 . 158 860 . 313 235 . . . . . . . Electromagnetic 811 | . 184 567 60 . . . . . . . . . . . Impact . | . . . . . . . . . . . . . . . Slashing 10921 | . . . 2695 118 . 65 2914 4673 456 . . . . . Piercing . | . . . . . . . . . . . . . . . Highest Corruption 11 | . . . . . . . 1 1 1 1 1 1 11 . Average Corruption 1 | . . . . . . . 1 1 1 1 1 1 8 . Corruption Purged . | . . . . . . . . . . . . . . . Corruption Blocked 4 | . . . . . . . . 2 . 2 . . . . Effects 82 | . . . . . . . 11 21 5 23 6 1 15 . Message Errors 14 | . . . . . . . 3 4 . 2 . . 5 . Matter Fused 31 | . . . . . . . 2 13 1 10 1 1 3 . Heat Flow Errors 14 | . . . . . . . 3 3 1 3 3 . 1 . Energy Discharges 7 | . . . . . . . 2 1 1 . 1 . 2 . Parts Rejected 1 | . . . . . . . . . 1 . . . . . Parts Fused 1 | . . . . . . . . . . . . . 1 . Data Loss (minor) 6 | . . . . . . . . . 1 3 . . 2 . Data Loss (major) 3 | . . . . . . . . . . 2 . . 1 . Misfires 3 | . . . . . . . . . . 2 1 . . . Alerts 2 | . . . . . . . 1 . . 1 . . . . Overload Shots . | . . . . . . . . . . . . . . . Overflow Damage 457 | . . . 68 . . 25 62 240 62 . . . . . Projectiles . | . . . . . . . . . . . . . . . Explosions 5 | . . . . . . . 5 . . . . . . . Melee 452 | . . . 68 . . 25 57 240 62 . . . . . Knockbacks 9 | . . . . . . . . . . 1 . . 8 . Impact 1 | . . . . . . . . . . 1 . . . . Kinetic 7 | . . . . . . . . . . . . . 7 . Secondary 1 | . . . . . . . . . . . . . 1 . Self-Inflicted Damage 60 | . . . 27 13 . 7 . . . . . . 13 . Shots 4 | . . . 1 2 . 1 . . . . . . . . Rammed 5 | . . . . . . . . . . 2 . . 3 . Targets Rammed 5 | . . . . . . . . . . 2 . . 3 . Kicked . | . . . . . . . . . . . . . . . Crushed . | . . . . . . . . . . . . . . . Highest Temperature 352 | . 120 306 24 4 . 12 267 264 107 352 248 40 96 . Average Temperature 82 | . 39 96 10 3 . 8 85 99 59 97 105 14 22 . Received Heat Transfer 1821 | . 99 234 351 36 . 18 495 216 . 135 24 78 135 . Effects 5 | . . 1 . . . . . . . 2 2 . . . Energy Bleed 1 | . . . . . . . . . . 1 . . . . Interference 4 | . . 1 . . . . . . . 1 2 . . . Siege Activations . | . . . . . . . . . . . . . . . Martial Activations . | . . . . . . . . . . . . . . . Shielding Activations . | . . . . . . . . . . . . . . . Robots Disrupted . | . . . . . . . . . . . . . . . Combat Hostiles . | . . . . . . . . . . . . . . . Robots Corrupted . | . . . . . . . . . . . . . . . Combat Hostiles . | . . . . . . . . . . . . . . . Parts Fried 4 | . 1 1 . . . . . . . . . . 2 . Impact Corruptions . | . . . . . . . . . . . . . . . Robots Melted 1 | . . 1 . . . . . . . . . . . . Combat Hostiles 1 | . . 1 . . . . . . . . . . . . Parts Melted 2 | . . 1 . . . . . . . 1 . . . . Heat Transferred 198 | . . 161 37 . . . . . . . . . . . Parts Sabotaged 2 | . . . . . . . . . . . . . 2 . Parts Stolen 1 | . . . . . . . . . . . 1 . . . Parts Stripped . | . . . . . . . . . . . . . . . Power Chain Reactions 2 | . . 1 1 . . . . . . . . . . . Alert | -11 -10 -10 -9 -9 -9 -8 -8 -7 -7 -7 -7 -7 -6 -5 ------- Run | Yrd Mat Min Mat Min Exi Min Mat Fac Was Fac Low Low Fac Fac Maximum Alert Level 2 | . . . 1 . . . 1 2 . 2 . . 1 . Low Security (%) 72 | 100 100 100 52 100 . 100 90 63 100 50 . . 78 100 Level 1 15 | . . . 47 . . . 9 12 . 16 . . 21 . Level 2 12 | . . . . . . . . 23 . 33 . . . . Level 3 . | . . . . . . . . . . . . . . . Level 4 . | . . . . . . . . . . . . . . . Level 5 . | . . . . . . . . . . . . . . . High Security . | . . . . . . . . . . . . . . . Max Security . | . . . . . . . . . . . . . . . Peak Influence 619 | . 107 106 304 154 . 141 303 572 199 619 . . 228 58 Initial 199 | . . . 12 104 . . . 65 199 . . . 18 58 Average 146 | . 23 29 167 69 . 24 61 202 65 268 . . 83 58 Influence Increases 5724 | . 272 302 845 282 . 185 833 1150 35 1228 20 120 452 . Destroy 0b10 Robot/C 3340 | . 140 260 560 180 . 100 480 660 . 560 20 100 280 . Destroy 0b10 Robot/NC 305 | . 30 . 60 15 . 5 25 55 . 75 . . 40 . Destroy Leader 882 | . 38 40 154 30 . 20 128 192 . 204 . 20 56 . Allied During Kill 226 | . . . . 1 . . . . . 225 . . . . Successful Hack 266 | . 33 . 21 . . 6 44 148 . 12 . . 2 . Select Force Hacks 60 | . . . . . . . . 30 . 30 . . . . Disable Machine 150 | . . . . 15 . . 15 . . 90 . . 30 . Destroy Structure 255 | . 16 2 20 41 . 39 36 20 35 32 . . 14 . Lose Combat Pursuer 240 | . 15 . 30 . . 15 105 45 . . . . 30 . Influence Decreases 5666 | . 272 270 609 412 138 185 687 727 604 615 577 146 362 62 Entered New Map 1085 | . . . 20 164 138 . . 81 370 . 227 11 12 62 Time Decay 3722 | . 262 228 526 228 . 175 357 576 130 525 350 135 230 . Lost Part 374 | . 10 42 63 . . 10 59 60 10 . . . 120 . Lost Ally 214 | . . . . 20 . . . 10 94 90 . . . . Purge Threat 271 | . . . . . . . 271 . . . . . . . Squads Dispatched 45 | . 1 . 1 1 . 1 3 17 . 15 . . 6 . Investigation 4 | . . . . . . . 1 2 . 1 . . . . Extermination 22 | . . . . . . . . 11 . 10 . . 1 . Reinforcement 13 | . 1 . 1 . . 1 2 3 . 2 . . 3 . Assault 6 | . . . . 1 . . . 1 . 2 . . 2 . Garrison . | . . . . . . . . . . . . . . . Intercept . | . . . . . . . . . . . . . . . Searches Triggered . | . . . . . . . . . . . . . . . Construction Impeded 1 | . . . . . . 1 . . . . . . . . Haulers Reinforced 5 | . . . . . . . . 3 . . . . 2 . Active Scanning Responses . | . . . . . . . . . . . . . . . Cargo Convoy Interrupts 1 | . . . . . . . . . . . . . 1 . Stealth | -11 -10 -10 -9 -9 -9 -8 -8 -7 -7 -7 -7 -7 -6 -5 --------- Run | Yrd Mat Min Mat Min Exi Min Mat Fac Was Fac Low Low Fac Fac Distress Signals 10 | . 1 . 4 . . . 2 1 . 1 . . 1 . Communications Jammed 26 | . . . . . . . . 2 . 24 . . . . Distress Signals 25 | . . . . . . . . 2 . 23 . . . . Times Spotted 233 | . 13 14 46 10 . 5 37 38 6 34 2 6 22 . Peak Tracking Total 11 | . 4 3 7 5 . 3 6 5 3 6 1 3 11 . Tactical Retreats 14 | . 1 . 2 . . 1 6 2 . . . . 2 . Traps | -11 -10 -10 -9 -9 -9 -8 -8 -7 -7 -7 -7 -7 -6 -5 ------- Run | Yrd Mat Min Mat Min Exi Min Mat Fac Was Fac Low Low Fac Fac Traps Triggered 13 | . 2 . . . . . 2 4 . 2 . . 3 . Indirectly . | . . . . . . . . . . . . . . . Trap Hack Attempts . | . . . . . . . . . . . . . . . Triggered . | . . . . . . . . . . . . . . . Disarmed . | . . . . . . . . . . . . . . . Reprogrammed . | . . . . . . . . . . . . . . . Reused . | . . . . . . . . . . . . . . . Traps Extracted . | . . . . . . . . . . . . . . . Installed . | . . . . . . . . . . . . . . . Triggered . | . . . . . . . . . . . . . . . Machines | -11 -10 -10 -9 -9 -9 -8 -8 -7 -7 -7 -7 -7 -6 -5 ---------- Run | Yrd Mat Min Mat Min Exi Min Mat Fac Was Fac Low Low Fac Fac Machines Disabled 10 | . . . . 1 . . 1 . . 6 . . 2 . Max in Single Turn 4 | . . . . 1 . . 1 . . 4 . . 1 . Garrison Access 3 | . . . . . . . 1 1 . . . . 1 . Machines Repaired . | . . . . . . . . . . . . . . . Machines Dismantled . | . . . . . . . . . . . . . . . Machines Sabotaged . | . . . . . . . . . . . . . . . Overloaded Fab Kills . | . . . . . . . . . . . . . . . Hacking | -11 -10 -10 -9 -9 -9 -8 -8 -7 -7 -7 -7 -7 -6 -5 --------- Run | Yrd Mat Min Mat Min Exi Min Mat Fac Was Fac Low Low Fac Fac Machines Accessed 67 | . 7 . 7 . 1 1 9 20 . 17 . . 5 . Terminals 44 | . 7 . 7 . . 1 6 12 . 10 . . 1 . Fabricators 1 | . . . . . . . . . . 1 . . . . Repair Stations 5 | . . . . . . . . 2 . 1 . . 2 . Recycling Units 5 | . . . . . . . . 2 . 3 . . . . Scanalyzers 8 | . . . . . . . 2 2 . 2 . . 2 . Garrison Access 3 | . . . . . . . 1 2 . . . . . . Total Hacks 191 | . 21 . 24 . 1 1 47 50 . 36 . . 11 . Successful 89 | . 12 . 14 . 1 1 26 24 . 7 . . 4 . Failed 99 | . 9 . 10 . . . 20 25 . 29 . . 6 . Catastrophic 17 | . 1 . . . . . 2 8 . 5 . . 1 . Database Lockouts 3 | . . . . . . . 1 1 . . . . 1 . Manual 106 | . 14 . 16 . 1 1 30 24 . 17 . . 3 . Terminals 143 | . 21 . 24 . . 1 38 33 . 23 . . 3 . Fabricators 1 | . . . . . . . . . . 1 . . . . Repair Stations 15 | . . . . . . . . 7 . 3 . . 5 . Recycling Units 11 | . . . . . . . . 5 . 6 . . . . Scanalyzers 16 | . . . . . . . 7 3 . 3 . . 3 . Garrison Access 4 | . . . . . . . 2 2 . . . . . . Terminal Hacks 32 | . 6 . 8 . 1 1 11 5 . . . . . . Record 1 | . . . 1 . . . . . . . . . . . Part Schematic 2 | . . . . . . . . 2 . . . . . . Robot Analysis 10 | . 3 . 1 . . . 6 . . . . . . . Emergency Access Points 1 | . . . 1 . . . . . . . . . . . Terminal Index 2 | . 1 . . . . . 1 . . . . . . . Alert Level 2 | . . . . . . . 1 1 . . . . . . Unreport Threat 3 | . . . . . . . 3 . . . . . . . Locate Traps 4 | . 1 . 1 . . . . 2 . . . . . . Recall Investigation 1 | . 1 . . . . . . . . . . . . . Registered Components 2 | . . . 2 . . . . . . . . . . . Zone Layout 3 | . . . 2 . . 1 . . . . . . . . Proto ID Catalog 1 | . . . . . 1 . . . . . . . . . Fabricator Hacks 1 | . . . . . . . . . . 1 . . . . Network Status 1 | . . . . . . . . . . 1 . . . . Repair Station Hacks 7 | . . . . . . . . 3 . 2 . . 2 . Scan Component 5 | . . . . . . . . 2 . 1 . . 2 . Repair 2 | . . . . . . . . 1 . 1 . . . . Recycling Unit Hacks 2 | . . . . . . . . 2 . . . . . . Report Inventory 2 | . . . . . . . . 2 . . . . . . Scanalyzer 8 | . . . . . . . 4 2 . . . . 2 . Insert Component 1 | . . . . . . . 1 . . . . . . . Retrieve Study 7 | . . . . . . . 3 2 . . . . 2 . Garrison Access Hacks 2 | . . . . . . . 1 1 . . . . . . Seal Access 2 | . . . . . . . 1 1 . . . . . . Unauthorized Hacks 37 | . 6 . 6 . . . 10 11 . 4 . . . . Terminals 35 | . 6 . 6 . . . 10 10 . 3 . . . . Botnet 22 | . 3 . 6 . . . 5 6 . 2 . . . . Skim 13 | . 3 . . . . . 5 4 . 1 . . . . Fabricators . | . . . . . . . . . . . . . . . Repair Stations . | . . . . . . . . . . . . . . . Recycling Units 2 | . . . . . . . . 1 . 1 . . . . Tunnel 2 | . . . . . . . . 1 . 1 . . . . Scanalyzers . | . . . . . . . . . . . . . . . Garrison Access . | . . . . . . . . . . . . . . . Data Cores Recovered 2 | . 1 . . . . . . . . 1 . . . . Used . | . . . . . . . . . . . . . . . Hacking Detections 56 | . 7 . 4 . . . 7 17 . 16 . . 5 . Full Trace Events 1 | . . . . . . . 1 . . . . . . . Feedback Events . | . . . . . . . . . . . . . . . Feedback Blocked . | . . . . . . . . . . . . . . . Robot Schematics Acquired . | . . . . . . . . . . . . . . . Robots Built . | . . . . . . . . . . . . . . . Authchips . | . . . . . . . . . . . . . . . Time . | . . . . . . . . . . . . . . . Total Robot Build Rating . | . . . . . . . . . . . . . . . Part Schematics Acquired 2 | . . . . . . . . 2 . . . . . . Parts Built . | . . . . . . . . . . . . . . . Authchips . | . . . . . . . . . . . . . . . Time . | . . . . . . . . . . . . . . . Total Part Build Rating . | . . . . . . . . . . . . . . . Part Studies Acquired 7 | . . . . . . . 3 2 . . . . 2 . Parts Repaired 2 | . . . . . . . . 1 . 1 . . . . Time 78 | . . . . . . . . 22 . 56 . . . . Parts Recycled . | . . . . . . . . . . . . . . . Recycled Matter . | . . . . . . . . . . . . . . . Retrieved Matter . | . . . . . . . . . . . . . . . Retrieved Components . | . . . . . . . . . . . . . . . Parts Scanalyzed 1 | . . . . . . . 1 . . . . . . . Part Schematics Acquired . | . . . . . . . . . . . . . . . Parts Damaged 1 | . . . . . . . 1 . . . . . . . Bothacking | -11 -10 -10 -9 -9 -9 -8 -8 -7 -7 -7 -7 -7 -6 -5 ------------ Run | Yrd Mat Min Mat Min Exi Min Mat Fac Was Fac Low Low Fac Fac Used RIF Installer . | . . . . . . . . . . . . . . . Robots Hacked . | . . . . . . . . . . . . . . . Non-combat . | . . . . . . . . . . . . . . . Combat . | . . . . . . . . . . . . . . . Robot Hacks Applied . | . . . . . . . . . . . . . . . Relay Couplers Released 4 | . . . . . . . . . . . . . 4 . Programmers 4 | . . . . . . . . . . . . . 4 . Fabnet Peak Effective % . | . . . . . . . . . . . . . . . Robots Rewired . | . . . . . . . . . . . . . . . Allies Hacked 1 | . . . . . . . . . . 1 . . . . Hacks Repelled . | . . . . . . . . . . . . . . . Allies | -11 -10 -10 -9 -9 -9 -8 -8 -7 -7 -7 -7 -7 -6 -5 -------- Run | Yrd Mat Min Mat Min Exi Min Mat Fac Was Fac Low Low Fac Fac Total Allies 21 | . . . . 1 . . . . 20 . . . . . Largest Group 19 | . . . . 1 . . . . 19 10 . . . . Highest-Rated Group 475 | . . . . 31 . . . . 475 279 . . . . Highest-Rated Ally 35 | . . . . 31 . . . . 35 31 . . . . Total Orders 2 | . . . . . . . . 2 . . . . . . EXPLORE 2 | . . . . . . . . 2 . . . . . . Ally Attacks 283 | . . . . 5 . . . . 186 92 . . . . Total Damage 5566 | . . . . 84 . . . . 4217 1265 . . . . Kills 21 | . . . . . . . . . 7 14 . . . . Allies Corrupted . | . . . . . . . . . . . . . . . Allies Melted . | . . . . . . . . . . . . . . . Intel | -11 -10 -10 -9 -9 -9 -8 -8 -7 -7 -7 -7 -7 -6 -5 ------- Run | Yrd Mat Min Mat Min Exi Min Mat Fac Was Fac Low Low Fac Fac Active Infowar (turns) 3795 | . 1138 39 . . . . . 155 . 2327 . . 135 1 Structural 1177 | . 1138 39 . . . . . . . . . . . . T.N.C. 2136 | . . . . . . . . . . 2000 . . 135 1 Jamming 2073 | . . . . . . . . 155 . 1918 . . . . Robot Analysis Total 10 | . 3 . 1 . . . 6 . . . . . . . Derelict Logs Recovered 6 | . . . . 3 . . . . . . 1 2 . . Drone Launches 2 | . . . . . . . . 2 . . . . . . Drone Recoveries 1 | . . . . . . . . 1 . . . . . . Exploration | -11 -10 -10 -9 -9 -9 -8 -8 -7 -7 -7 -7 -7 -6 -5 ------------- Run | Yrd Mat Min Mat Min Exi Min Mat Fac Was Fac Low Low Fac Fac Turns Passed 20199 | 92 1238 841 2494 514 508 1146 2276 4574 491 3615 784 540 1085 1 Spaces Moved 10202 | 51 556 296 973 197 212 449 848 2953 332 2028 463 303 541 . Core 1 | 1 . . . . . . . . . . . . . . Treads 6276 | 50 556 296 782 197 212 449 677 . . 1958 463 303 333 . Legs 3526 | . . . . . . . 171 2953 332 70 . . . . Wheels 399 | . . . 191 . . . . . . . . . 208 . Hover . | . . . . . . . . . . . . . . . Flight . | . . . . . . . . . . . . . . . Fastest Speed 50 | 50 160 240 105 240 240 240 153 116 130 130 160 160 115 . Average Speed 168 | 157 208 240 216 240 240 240 202 125 130 158 160 160 148 . Slowest Speed 320 | 160 320 240 240 240 240 240 243 130 130 160 160 160 212 . Overloaded Moves . | . . . . . . . . . . . . . . . Propulsion Burnouts . | . . . . . . . . . . . . . . . Robots Hopped . | . . . . . . . . . . . . . . . Potential Cave-ins . | . . . . . . . . . . . . . . . Cave-ins Triggered . | . . . . . . . . . . . . . . . Exploration Rate (%) 62 | 3 93 57 86 70 60 76 80 77 94 55 68 37 21 . Regions Visited 14 Branch Regions 6 Pre-discovered Areas 2 | . . . . . . . . 1 . 1 . . . . Known Exits Taken 6 | . . 1 . . . . 1 . . 1 1 1 1 . Unknown Exits Taken 6 | 1 1 . 1 1 1 1 . . . . . . . . Scrap Searched 7 | . . 2 . . . 1 . . . . 2 2 . . Spaces Dug 32 | . . . 2 . . . 4 20 2 3 . . 1 . Terrain Destroyed 267 | . 20 2 20 58 . 62 38 20 2 28 . . 17 . Melee 28 | . . . 2 . . . 4 20 2 . . . . . Projectile 21 | . . . . . . . . . . 6 . . 15 . AOE 216 | . 20 2 18 58 . 62 34 . . 22 . . . . Terrain Rammed . | . . . . . . . . . . . . . . . Walls Destroyed . | . . . . . . . . . . . . . . . Machines Disabled . | . . . . . . . . . . . . . . . Actions | -11 -10 -10 -9 -9 -9 -8 -8 -7 -7 -7 -7 -7 -6 -5 --------- Run | Yrd Mat Min Mat Min Exi Min Mat Fac Was Fac Low Low Fac Fac Total 12373 | 60 601 366 1239 217 213 511 1286 3657 383 2304 498 336 701 1 Wait 1227 | . 4 15 116 . . 56 286 512 18 133 25 12 50 . Move 10190 | 50 555 295 972 196 211 448 847 2953 331 2027 462 302 541 . Hop . | . . . . . . . . . . . . . . . Pick Up 130 | 4 8 6 28 1 1 . 23 26 9 17 . 2 5 . Fast Attach 46 | 6 7 1 5 . . . 5 7 1 8 1 1 4 . Attach 64 | . 1 6 11 . . . 10 10 7 7 2 1 8 1 Detach 10 | . . 1 2 . . . 1 1 . 4 1 . . . Swap 47 | . 3 1 8 1 . . 9 12 1 9 . . 3 . Drop 109 | . 3 1 19 1 1 . 23 26 9 19 . 1 6 . Fire 259 | . 20 40 10 11 . 6 4 . . 78 7 17 66 . Melee 271 | . . . 68 7 . 1 78 110 7 . . . . . Ram 2 | . . . . . . . . . . . . . 2 . Kick . | . . . . . . . . . . . . . . . Crush 2 | . . . . . . . . . . 2 . . . . Escape Stasis 16 | . . . . . . . . . . . . . 16 . Rewire . | . . . . . . . . . . . . . . . Trap . | . . . . . . . . . . . . . . . Miscellaneous . | . . . . . . . . . . . . . . . Route ------- -11/Scrapyard -10/Materials (discovered 6 exits: *Mat x3 / [*Min x2] / [Sub]) -10/Mines (discovered 3 exits: *Mat x2 / [*Sub]) -9/Materials (discovered 4 exits: *Mat x3 / [*Min]) -9/Mines (discovered 2 exits: *Mat / *Exi) -9/Exiles -8/Mines -8/Materials (discovered 3 exits: *Fac x3) -7/Factory (discovered 6 exits: *Fac x4 / *Low x2) -7/Waste -7/Factory (discovered 4 exits: *Fac x3 / *Low) -7/Lower Caves -7/Lower Caves (discovered 2 exits: *Fac / Zio) -6/Factory (discovered 3 exits: *Fac x3) -5/Factory History --------- Turn | Location | Event 5 | -11/Scrapyard | Discovered new exit (range 16) 93 | -11/Scrapyard | Entered Materials 307 | -10/Materials | Discovered new exit (range 16) 309 | -10/Materials | Build established: Mutant 431 | -10/Materials | Discovered new exit (range 16) 687 | -10/Materials | Discovered new exit (range 14) 721 | -10/Materials | Discovered new exit (range 10) 981 | -10/Materials | Discovered new exit (range 6) 1158 | -10/Materials | Discovered new exit (range 16) 1331 | -10/Materials | Entered Mines 1348 | -10/Mines | Discovered new exit (range 9) 1371 | -10/Mines | Identified exit to Materials 1608 | -10/Mines | Lost 5 parts (1p1n3w) 1658 | -10/Mines | Discovered new exit (range 6) 1751 | -10/Mines | Found a damaged Exp. Sensor Array with a note attached 1756 | -10/Mines | Found Prototype Device 1964 | -10/Mines | Discovered exit to Materials (range 6) 1978 | -10/Mines | Core integrity fell below 50% 2172 | -10/Mines | Entered Materials 2172 | -9/Materials | Evolved 2 slots: Weapon x2 2340 | -9/Materials | Discovered new exit (range 15) 2469 | -9/Materials | Discovered new exit (range 16) 2979 | -9/Materials | Build established: Gladiator 3163 | -9/Materials | Discovered new exit (range 12) 3469 | -9/Materials | Core integrity fell below 50% 3751 | -9/Materials | Discovered new exit (range 8) 4537 | -9/Materials | Build established: Mutant 4666 | -9/Materials | Entered Mines 4673 | -9/Mines | Received a Rocket Launcher from a helpful Derelict 4677 | -9/Mines | Met a Derelict bent on vengeance 4839 | -9/Mines | Met a Derelict testing a Signal Generator 4848 | -9/Mines | Learned 4 Materials zone layouts 5114 | -9/Mines | Learned Materials stockpile data 5119 | -9/Mines | Discovered new exit (range 10) 5170 | -9/Mines | Deemed a non-threat by the Exiles lab entrance 5170 | -9/Mines | Discovered new exit (range 5) 5180 | -9/Mines | Entered Exiles 5238 | -9/Exiles | Met 8R-AWN 5281 | -9/Exiles | Met EX-HEX 5353 | -9/Exiles | Met EX-BIN 5384 | -9/Exiles | Aligned with FarCom system 5387 | -9/Exiles | Given EX-Vault access code 5442 | -9/Exiles | Opened EX-Vault 5462 | -9/Exiles | Found Supersonic Drone Bay 5513 | -9/Exiles | Warned to stay clear of 0b10 Research branches 5583 | -9/Exiles | Met EX-DEC 5667 | -9/Exiles | Discovered new exit (range 10) 5688 | -9/Exiles | Left Exiles lab with Supersonic Drone Bay 5688 | -9/Exiles | Entered Mines 6817 | -8/Mines | Discovered new exit (range 7) 6834 | -8/Mines | Entered Materials 6834 | -8/Materials | Evolved 2 slots: Propulsion x1, Utility x1 6835 | -8/Materials | Identified exit to Factory 7148 | -8/Materials | Build established: Gladiator 7549 | -8/Materials | Central database locked down 7682 | -8/Materials | Discovered exit to Factory (range 16) 7782 | -8/Materials | Build established: Mutant 7826 | -8/Materials | Identified Exp. Sensor Array 8535 | -8/Materials | Discovered exit to Factory (range 11) 8614 | -8/Materials | Lost 5 parts (1n2u2w) 9110 | -8/Materials | Entered Factory 9110 | -7/Factory | Evolved 2 slots: Propulsion x1, Utility x1 9208 | -7/Factory | Build established: Gladiator 9371 | -7/Factory | Discovered new exit (range 12) 9596 | -7/Factory | Discovered new exit (range 46) 9600 | -7/Factory | Discovered new exit (range 98) 9984 | -7/Factory | Discovered new exit (range 19) 10606 | -7/Factory | Discovered new exit (range 10) 11024 | -7/Factory | Central database locked down 11784 | -7/Factory | Discovered new exit (range 6) 12153 | -7/Factory | Repaired Imp. Titanium Leg 13510 | -7/Factory | First assault squad dispatched 13684 | -7/Factory | Sucked down chute 13684 | -7/Factory | Entered Waste 13685 | -7/Waste | Met a frightened Derelict 13695 | -7/Waste | Spotted C-40 Crusher 13696 | -7/Waste | Spotted C-40 Crusher 13705 | -7/Waste | Spotted C-40 Crusher 13740 | -7/Waste | Crushed by Compactor (1 part destroyed, 1 dropped) 13775 | -7/Waste | Warlord forces began an assault 13779 | -7/Waste | Allies destroyed C-40 Crusher 13784 | -7/Waste | Allies destroyed C-40 Crusher 13784 | -7/Waste | Allies destroyed C-40 Crusher 13874 | -7/Waste | Spotted C-40 Crusher 13886 | -7/Waste | Allies destroyed C-40 Crusher 13892 | -7/Waste | Spotted C-40 Crusher 13900 | -7/Waste | Allies destroyed C-40 Crusher 13928 | -7/Waste | Lost 3 allies 13949 | -7/Waste | Spotted C-40 Crusher 13969 | -7/Waste | Allies destroyed C-40 Crusher 13999 | -7/Waste | Lost 4 allies 14009 | -7/Waste | Discovered new exit (range 15) 14175 | -7/Waste | Entered Factory 14175 | -7/Factory | Accompanied by 10 allies 14575 | -7/Factory | Build established: Derelict-Tank 14672 | -7/Factory | Discovered new exit (range 14) 14705 | -7/Factory | Identified exit to Factory 15499 | -7/Factory | Build established: Skirmisher 15554 | -7/Factory | Discovered exit to Factory (range 7) 16704 | -7/Factory | Repaired Hvy. Treads 16820 | -7/Factory | Core integrity fell below 50% 17370 | -7/Factory | Discovered new exit (range 4) 17375 | -7/Factory | First assault squad dispatched 17447 | -7/Factory | Build established: Tank 17671 | -7/Factory | Discovered exit to Factory (range 15) 17790 | -7/Factory | Identified exit to Lower Caves 17790 | -7/Factory | Entered Lower Caves 17802 | -7/Lower Caves | Learned Factory emergency access door positions 17836 | -7/Lower Caves | Attracted the attention of an 0b10 checkpoint 18321 | -7/Lower Caves | Discovered new exit (range 8) 18332 | -7/Lower Caves | Identified exit to Lower Caves 18453 | -7/Lower Caves | Encountered a Warlord checkpoint 18574 | -7/Lower Caves | Entered another Lower Caves area 18577 | -7/Lower Caves | Encountered a Warlord checkpoint 18579 | -7/Lower Caves | Learned Factory stockpile data 18581 | -7/Lower Caves | Discovered exit to Factory (range 7) 18746 | -7/Lower Caves | Identified exit to Zion 18754 | -7/Lower Caves | Attracted the attention of an 0b10 checkpoint 18820 | -7/Lower Caves | Spotted B-75 Beast 18842 | -7/Lower Caves | Destroyed B-75 Beast 19114 | -7/Lower Caves | Entered Factory 19114 | -6/Factory | Evolved 2 slots: Utility x2 19224 | -6/Factory | Central database locked down 19437 | -6/Factory | Discovered new exit (range 7) 19447 | -6/Factory | Identified exit to Factory 19531 | -6/Factory | Discovered exit to Factory (range 13) 19750 | -6/Factory | Cargo convoy interrupted 19834 | -6/Factory | Lost 3 parts (3n) 19931 | -6/Factory | System corruption reached 10% 20178 | -6/Factory | Discovered exit to Factory (range 13) 20183 | -6/Factory | Lost 6 parts (1p1n2u2w) 20199 | -6/Factory | Entered another Factory area 20199 | -5/Factory | Evolved 2 slots: Propulsion x2 20200 | -5/Factory | Self-destructed Last Messages --------------- 20187_ I:UUOYOBOTF8/